fUST/lending_fUST_20240216
["ID","MTS","AMOUNT","RATE_DAILY","PERIOD"]
[314181706,1708049446172,-591.5455464,0.00022191,2]
[314181708,1708049446182,-500.0,0.00022191,2]
[314181710,1708049446191,-500.0,0.00022191,2]
[314181712,1708049446200,-596.79,0.00022191,2]
[314181714,1708049446209,-8952.07,0.00022191,2]
[314181717,1708049446219,-10645.34,0.00022191,2]
[314181718,1708049446228,-500.0,0.00022191,2]
[314181721,1708049446238,-1184.53,0.00022191,2]
[314181723,1708049446247,-500.0,0.00022191,2]
[314181725,1708049446258,-510.83111048,0.00022191,2]
[314181726,1708049446267,-500.0,0.00022191,2]
[314181729,1708049446276,-2982.91,0.00022191,2]
[314181730,1708049446286,-500.0,0.00022191,2]
[314181732,1708049446295,-3801.09,0.00022191,2]
[314181734,1708049446304,-500.0,0.00022191,2]
[314181736,1708049446313,-3594.52,0.00022191,2]
[314181738,1708049446322,-1000.0,0.00022191,2]
[314181740,1708049446331,-151.0,0.00022191,2]
[314181742,1708049446341,-176.508715,0.00022191,2]
[314181744,1708049446350,-500.0,0.00022191,2]
[314181746,1708049446359,-1789.67,0.00022191,2]
[314181748,1708049446368,-517.2797973,0.00022191,2]
[314181750,1708049446377,-975.81,0.00022191,2]
[314181753,1708049446388,-2053.7,0.00022191,2]
[314181755,1708049446397,-500.0,0.00022191,2]
[314181757,1708049446406,-2031.86,0.00022191,2]
[314181759,1708049446415,-500.0,0.00022191,2]
[314181761,1708049446424,-151.0,0.00022191,2]
[314181763,1708049446434,-151.0,0.00022191,2]
[314181764,1708049446443,-500.0,0.00022191,2]
[314181767,1708049446452,-500.0,0.00022191,2]
[314181768,1708049446461,-151.0,0.00022191,2]
[314181771,1708049446472,-500.0,0.00022191,2]
[314181773,1708049446481,-500.0,0.00022191,2]
[314181775,1708049446490,-14778.32,0.00022191,2]
[314181777,1708049446499,-500.0,0.00022191,2]
[314181779,1708049446509,-500.0,0.00022191,2]
[314181781,1708049446518,-500.0,0.00022191,2]
[314181783,1708049446527,-1398.39,0.00022191,2]
[314181785,1708049446537,-228.76996264,0.00022191,2]
[314181786,1708049446546,-500.0,0.00022191,2]
[314181788,1708049446556,-650.126333,0.00022191,2]
[314181790,1708049446566,-650.126333,0.00022191,2]
[314181793,1708049446576,-650.126333,0.00022191,2]
[314181794,1708049446586,-2711.37,0.00022191,2]
[314181796,1708049446596,-650.126333,0.00022191,2]
[314181799,1708049446606,-650.126333,0.00022191,2]
[314181800,1708049446615,-650.126333,0.00022191,2]
[314181803,1708049446625,-535.78,0.00022191,2]
[314181804,1708049446635,-500.0,0.00022191,2]
[314181806,1708049446644,-273.41980333,0.00022191,2]
[314181808,1708049446654,-500.0,0.00022191,2]
[314181810,1708049446664,-500.0,0.00022191,2]
[314181812,1708049446673,-3129.45,0.00022191,2]
[314181814,1708049446683,-200.30667307,0.00022191,2]
[314181816,1708049446693,-500.0,0.00022191,2]
[314181818,1708049446702,-500.0,0.00022191,2]
[314181820,1708049446711,-340.8385,0.00022191,2]
[314181822,1708049446721,-340.8385,0.00022191,2]
[314181825,1708049446731,-340.8385,0.00022191,2]
[314181827,1708049446740,-340.8385,0.00022191,2]
[314181829,1708049446750,-340.8385,0.00022191,2]
[314181831,1708049446761,-340.8385,0.00022191,2]
[314181833,1708049446770,-303.15829732,0.00022191,2]
[314181835,1708049446780,-517.53574392,0.00022191,2]
[314181837,1708049446792,-216.36710498,0.00022191,2]
[314181839,1708049446802,-500.0,0.00022191,2]
[314181841,1708049446811,-500.0,0.00022191,2]
[314181843,1708049446821,-16714.97407872,0.00022191,2]
[314181898,1708049447323,-9.55317609,0.00021917,2]
[314181914,1708049447459,1694.0,0.00021014,30]
[314182025,1708049825919,1500.0,0.00019,2]
[314182028,1708050159898,9000.0,0.00033,120]
[314182029,1708050304826,841.25989445,0.00033,120]
[314182030,1708050422124,-500.0,0.00021917,30]
[314182031,1708050438758,-500.0,0.00022191,30]
[314182032,1708050438788,-500.0,0.00022465,30]
[314182033,1708050438817,-500.0,0.00022739,30]
[314182038,1708050605745,15344.20399701,0.00019,2]
[314182059,1708050631926,-183.769567,0.00020089,2]
[314182061,1708050631936,-581.33836966,0.0002009,2]
[314182641,1708050638027,-344.33694559,0.0002009,2]
[314182642,1708050638036,-1281.71720449,0.00020091,2]
[314182643,1708050638045,-372.25667199,0.00020263,2]
[314182644,1708050638055,-330.8304169,0.00020356,2]
[314183473,1708051367488,937.15960162,0.000189,2]
[314183769,1708051834649,-155.13962566,0.00019987,2]
[314183771,1708051834658,-852.220465,0.00019988,2]
[314183773,1708051834672,-1627.86000945,0.00019988,2]
[314183775,1708051834681,-323.40403578,0.00019989,2]
[314183777,1708051834691,-482.27683925,0.00019989,2]
[314183779,1708051834701,-751.01591941,0.0001999,2]
[314183781,1708051834711,-152.38501566,0.0002,2]
[314183784,1708051834721,-1712.0,0.0002,2]
[314183786,1708051834730,-7994.33028244,0.00020117,2]
[314183788,1708051834739,-7994.33028244,0.00020118,2]
[314183790,1708051834748,-325.724588,0.00020389,2]
[314183792,1708051834757,-17725.72,0.0002048,3]
[314183794,1708051834766,-14771.44,0.0002048,3]
[314183796,1708051834775,-12309.53,0.0002048,3]
[314183798,1708051834785,-34435.01786165,0.0002049,2]
[314184137,1708051838210,-6976.30222449,0.0002049,2]
[314184538,1708051968638,624.77306775,0.000189,2]
[314184541,1708052311079,3000.0,0.000192,2]
[314184542,1708052344033,3000.0,0.000192,2]
[314184543,1708052371296,3000.0,0.000192,2]
[314184544,1708052570110,416.5153785,0.000189,2]
[314184547,1708052817944,-9493.0,0.000193,2]
[314184548,1708052817974,-24900.0,0.00019349,2]
[314184549,1708052817995,-220.3825169,0.00019446,2]
[314184550,1708052818017,-200.0,0.00019735,2]
[314184551,1708052818039,-200.0,0.00019735,2]
[314184552,1708052818064,-189.2981647,0.0002,2]
[314184553,1708052913872,171.898971,0.00019916,2]
[314184933,1708053041628,-344.77284484,0.00020074,2]
[314185098,1708053043326,-577.7206868,0.00020074,2]
[314185374,1708053046382,-84.05337577,0.00020074,2]
[314185376,1708053046394,-500.0,0.00020075,2]
[314185379,1708053046403,-500.0,0.00020075,2]
[314185380,1708053046412,-250.0,0.00020076,2]
[314185381,1708053046421,-500.0,0.00020076,2]
[314185383,1708053046430,-500.0,0.00020278,2]
[314185385,1708053046440,-150.76299972,0.00020485,2]
[314185387,1708053046449,-976.03497984,0.00020489,2]
[314185535,1708053171176,277.676919,0.000189,2]
[314185536,1708053365851,163.5730323,0.00019318,2]
[314185537,1708053402300,2906.6854194,0.00019592,2]
[314185538,1708053773238,185.117946,0.000189,2]
[314185539,1708053938069,155.51928984,0.00018806,2]
[314185540,1708053962776,178.98651345,0.0002,2]
[314185576,1708054232488,-285.0090145,0.00020142,2]
[314185577,1708054232498,-424.14675972,0.0002017,2]
[314185578,1708054232548,-157.89071528,0.0002017,2]
[314185579,1708054232558,-245.4,0.00020175,2]
[314185580,1708054232567,-997.37252105,0.00020175,2]
[314185581,1708054232577,-1586.402114,0.00020302,2]
[314185582,1708054232586,-1504.04549461,0.00020489,2]
[314185583,1708054232596,-8588.67991386,0.0002049,2]
[314185584,1708054232605,-200.0,0.00020899,2]
[314185585,1708054232616,-200.0,0.00020899,2]
[314185586,1708054232625,-622.65241288,0.00020924,2]
[314185587,1708054232634,-306.0,0.00021,2]
[314185588,1708054232644,-153.0,0.00021052,2]
[314185589,1708054232653,-200.230317,0.00021078,2]
[314185590,1708054232663,-153.0,0.00021252,2]
[314185591,1708054232671,-165.1615894,0.00021352,2]
[314185592,1708054232681,-155.2731222,0.000214,2]
[314185593,1708054232690,-150.84003067,0.00021717,2]
[314185594,1708054232699,-151.0,0.00021807,2]
[314185595,1708054232708,-151.042366,0.00021807,2]
[314185596,1708054232718,-190.94851527,0.00021815,2]
[314185597,1708054232727,-310.18929014,0.00021815,2]
[314185598,1708054232736,-24900.0,0.00021816,2]
[314185599,1708054232745,-151.0,0.00021817,2]
[314185600,1708054232754,-151.0,0.00021817,2]
[314185601,1708054232763,-151.0,0.00021817,2]
[314185602,1708054232773,-151.0,0.00021817,2]
[314185603,1708054232782,-5740.04,0.00021897,3]
[314185604,1708054232791,-6876.59,0.00021906,3]
[314185605,1708054232800,-9902.28,0.00021907,3]
[314185606,1708054232810,-7880.32313752,0.00021907,3]
[314185665,1708054238820,-371.57686248,0.00021907,3]
[314185667,1708054238829,-524.41093876,0.00021915,2]
[314185669,1708054238838,-264.91647513,0.00021916,2]
[314185671,1708054238847,-500.0,0.00021916,2]
[314185673,1708054238856,-460.60261781,0.00021916,2]
[314185675,1708054238865,-500.0,0.00021916,2]
[314185677,1708054238874,-498.88553386,0.00021916,2]
[314186056,1708054242570,-89.53305093,0.00021916,2]
[314186058,1708054242579,-500.0,0.00021916,2]
[314186060,1708054242588,-384.42955118,0.00021916,2]
[314186062,1708054242598,-500.0,0.00021916,2]
[314186064,1708054242607,-500.0,0.00021916,2]
[314186066,1708054242616,-487.24334363,0.00021916,2]
[314186068,1708054242626,-1000.0,0.00021916,2]
[314186070,1708054242635,-500.0,0.00021917,2]
[314186072,1708054242645,-500.0,0.00021917,2]
[314186074,1708054242654,-500.0,0.00021917,2]
[314186076,1708054242664,-500.0,0.00021917,2]
[314186078,1708054242673,-500.0,0.00021917,2]
[314186080,1708054242682,-500.0,0.00021917,2]
[314186082,1708054242691,-500.0,0.00021917,2]
[314186084,1708054242701,-500.0,0.00021917,2]
[314186086,1708054242711,-500.0,0.00021917,2]
[314186088,1708054242720,-500.0,0.00021917,2]
[314186090,1708054242729,-500.0,0.00021917,2]
[314186092,1708054242739,-547.44,0.00021917,2]
[314186094,1708054242749,-500.0,0.00021917,2]
[314186096,1708054242758,-555.86566177,0.00021917,2]
[314186098,1708054242767,-500.0,0.00021917,2]
[314186100,1708054242776,-1221.25,0.00021917,2]
[314186102,1708054242785,-500.0,0.00021917,2]
[314186104,1708054242794,-506.30355559,0.00021917,2]
[314186106,1708054242804,-232.56756896,0.00021917,2]
[314186108,1708054242814,-500.0,0.00021917,2]
[314186110,1708054242823,-665.87,0.00021917,2]
[314186112,1708054242833,-500.0,0.00021917,2]
[314186115,1708054242843,-597.86061115,0.00021917,2]
[314186116,1708054242853,-500.0,0.00021917,2]
[314186120,1708054242863,-500.0,0.00021917,2]
[314186123,1708054242873,-500.0,0.00021917,2]
[314186125,1708054242882,-500.0,0.00021917,2]
[314186138,1708054242964,-500.0,0.00021917,2]
[314186141,1708054242975,-506.01,0.00021917,2]
[314186143,1708054242984,-500.0,0.00021917,2]
[314186145,1708054242994,-500.0,0.00021917,2]
[314186147,1708054243003,-500.0,0.00021917,2]
[314186149,1708054243012,-500.0,0.00021917,2]
[314186151,1708054243021,-500.0,0.00021917,2]
[314186153,1708054243030,-1574.67,0.00021917,2]
[314186155,1708054243040,-370.98777162,0.00021917,2]
[314186157,1708054243050,-500.0,0.00021917,2]
[314186159,1708054243059,-500.0,0.00021917,2]
[314186161,1708054243068,-506.08199157,0.00021917,2]
[314186163,1708054243077,-455.52626437,0.00021917,2]
[314186165,1708054243086,-500.0,0.00021917,2]
[314186168,1708054243095,-500.0,0.00021917,2]
[314186171,1708054243104,-500.0,0.00021917,2]
[314186174,1708054243113,-1693.02,0.00021917,2]
[314186177,1708054243123,-367.17290942,0.00021917,2]
[314186180,1708054243131,-378.5359668,0.00021917,2]
[314186182,1708054243140,-500.0,0.00021917,2]
[314186185,1708054243150,-544.61075408,0.00021917,2]
[314186188,1708054243159,-1674.29,0.00021917,2]
[314186190,1708054243168,-500.0,0.00021917,2]
[314186193,1708054243178,-151.0,0.00021917,2]
[314186196,1708054243187,-151.0,0.00021917,2]
[314186199,1708054243197,-517.74321469,0.00021917,2]
[314186202,1708054243206,-516.86774964,0.00021917,2]
[314186206,1708054243216,-506.80406058,0.00021917,2]
[314186209,1708054243226,-500.0,0.00021917,2]
[314186212,1708054243236,-500.0,0.00021917,2]
[314186214,1708054243245,-500.0,0.00021917,2]
[314186216,1708054243255,-500.0,0.00021917,2]
[314186218,1708054243264,-500.0,0.00021917,2]
[314186220,1708054243274,-569.14,0.00021917,2]
[314186222,1708054243283,-500.0,0.00021917,2]
[314186224,1708054243293,-172.36693185,0.00021917,2]
[314186225,1708054243302,-500.0,0.00021917,2]
[314186227,1708054243310,-504.28661349,0.00021917,2]
[314186229,1708054243320,-894.49,0.00021917,2]
[314186231,1708054243329,-500.0,0.00021917,2]
[314186233,1708054243339,-500.0,0.00021917,2]
[314186235,1708054243348,-500.0,0.00021917,2]
[314186237,1708054243357,-500.0,0.00021917,2]
[314186239,1708054243366,-505.05894013,0.00021917,2]
[314186241,1708054243375,-601.20311584,0.00021917,5]
[314186243,1708054243385,-504.42826121,0.00021917,2]
[314186245,1708054243397,-818.02,0.00021917,2]
[314186247,1708054243407,-625.33,0.00021917,2]
[314186249,1708054243416,-500.0,0.00021917,2]
[314186251,1708054243425,-500.0,0.00021917,2]
[314186253,1708054243436,-500.0,0.00021917,2]
[314186255,1708054243445,-644.52,0.00021917,2]
[314186258,1708054243456,-500.0,0.00021917,2]
[314186260,1708054243466,-1876.77,0.00021917,2]
[314186261,1708054243475,-500.0,0.00021917,2]
[314186263,1708054243484,-648.0,0.00021917,2]
[314186265,1708054243494,-500.0,0.00021917,2]
[314186267,1708054243503,-500.0,0.00021917,2]
[314186270,1708054243513,-502.27713217,0.00021917,2]
[314186272,1708054243522,-500.0,0.00021917,2]
[314186274,1708054243532,-645.75,0.00021917,2]
[314186276,1708054243541,-500.0,0.00021917,2]
[314186278,1708054243549,-557.30126923,0.00021917,2]
[314186280,1708054243559,-500.0,0.00021917,2]
[314186282,1708054243568,-500.0,0.00021917,2]
[314186284,1708054243577,-500.0,0.00021917,2]
[314186286,1708054243587,-151.0,0.00021917,2]
[314186288,1708054243602,-151.0,0.00021917,2]
[314186291,1708054243618,-500.0,0.00021917,2]
[314186294,1708054243633,-500.0,0.00021917,2]
[314186296,1708054243645,-500.0,0.00021917,2]
[314186298,1708054243659,-600.01697442,0.00021917,2]
[314186301,1708054243675,-500.0,0.00021917,2]
[314186304,1708054243689,-500.0,0.00021917,2]
[314186306,1708054243704,-500.0,0.00021917,2]
[314186308,1708054243715,-500.0,0.00021917,2]
[314186311,1708054243729,-551.95411662,0.00021917,2]
[314186313,1708054243743,-507.5,0.00021917,2]
[314186316,1708054243757,-507.1060699,0.00021917,2]
[314186318,1708054243770,-728.18,0.00021917,2]
[314186321,1708054243783,-1036.45,0.00021917,2]
[314186323,1708054243793,-500.0,0.00021917,2]
[314186325,1708054243809,-500.0,0.00021917,2]
[314186329,1708054243822,-511.59386089,0.00021917,2]
[314186332,1708054243834,-800.26,0.00021917,2]
[314186336,1708054243847,-500.0,0.00021917,2]
[314186339,1708054243860,-639.33,0.00021917,2]
[314186341,1708054243873,-500.0,0.00021917,2]
[314186344,1708054243888,-500.0,0.00021917,2]
[314186346,1708054243903,-715.64,0.00021917,2]
[314186349,1708054243917,-500.0,0.00021917,2]
[314186351,1708054243928,-500.0,0.00021917,2]
[314186353,1708054243940,-500.0,0.00021917,2]
[314186356,1708054243955,-889.66,0.00021917,2]
[314186358,1708054243966,-500.0,0.00021917,2]
[314186361,1708054243980,-588.41,0.00021917,2]
[314186363,1708054243992,-500.0,0.00021917,2]
[314186365,1708054244002,-500.0,0.00021917,2]
[314186367,1708054244014,-500.0,0.00021917,2]
[314186370,1708054244026,-500.0,0.00021917,2]
[314186372,1708054244038,-500.0,0.00021917,2]
[314186374,1708054244050,-500.0,0.00021917,2]
[314186377,1708054244063,-500.0,0.00021917,2]
[314186379,1708054244075,-500.0,0.00021917,2]
[314186381,1708054244087,-500.0,0.00021917,2]
[314186383,1708054244098,-500.0,0.00021917,2]
[314186386,1708054244110,-500.0,0.00021917,2]
[314186388,1708054244122,-2776.0,0.00021917,2]
[314186390,1708054244133,-500.0,0.00021917,2]
[314186392,1708054244145,-500.0,0.00021917,2]
[314186395,1708054244156,-718.01,0.00021917,2]
[314186397,1708054244168,-9937.14,0.00021917,2]
[314186399,1708054244180,-500.0,0.00021917,2]
[314186402,1708054244190,-3484.33,0.00021917,2]
[314186404,1708054244202,-1000.0,0.00021917,2]
[314186406,1708054244214,-514.3246064,0.00021917,2]
[314186408,1708054244225,-1127.49,0.00021917,2]
[314186411,1708054244237,-500.0,0.00021917,2]
[314186413,1708054244249,-500.0,0.00021917,2]
[314186415,1708054244261,-500.0,0.00021917,2]
[314186418,1708054244273,-1972.62,0.00021917,2]
[314186420,1708054244285,-3485.39,0.00021917,2]
[314186422,1708054244297,-500.0,0.00021917,2]
[314186424,1708054244309,-500.0,0.00021917,2]
[314186427,1708054244320,-500.0,0.00021917,2]
[314186429,1708054244333,-314.19315337,0.00021917,2]
[314186431,1708054244344,-500.0,0.00021917,2]
[314186434,1708054244356,-500.0,0.00021917,2]
[314186436,1708054244367,-500.0,0.00021917,2]
[314186438,1708054244379,-1948.69,0.00021917,2]
[314186440,1708054244394,-523.69016894,0.00021917,2]
[314186453,1708054244501,-443.4548926,0.00021917,2]
[314186455,1708054244516,-500.0,0.00021917,2]
[314186457,1708054244525,-500.0,0.00021917,2]
[314186459,1708054244534,-1682.2,0.00021917,2]
[314186461,1708054244546,-500.0,0.00021917,2]
[314186464,1708054244555,-500.0,0.00021917,2]
[314186465,1708054244563,-500.0,0.00021917,2]
[314186467,1708054244572,-500.0,0.00021917,2]
[314186470,1708054244583,-151.0,0.00021917,2]
[314186472,1708054244593,-500.0,0.00021917,2]
[314186474,1708054244603,-500.0,0.00021917,2]
[314186476,1708054244612,-500.0,0.00021917,2]
[314186478,1708054244622,-501.46624932,0.00021917,2]
[314186480,1708054244631,-500.0,0.00021917,2]
[314186482,1708054244641,-500.0,0.00021917,2]
[314186484,1708054244650,-899.34,0.00021917,2]
[314186486,1708054244659,-2527.09,0.00021917,2]
[314186488,1708054244670,-500.0,0.00021917,2]
[314186490,1708054244681,-1647.54,0.00021917,2]
[314186492,1708054244691,-633.87849119,0.00021917,2]
[314186494,1708054244700,-500.0,0.00021917,2]
[314186496,1708054244710,-500.0,0.00021917,2]
[314186498,1708054244720,-16248.91,0.00021917,2]
[314186500,1708054244729,-151.0,0.00021917,2]
[314186502,1708054244739,-151.0,0.00021917,2]
[314186504,1708054244749,-151.0,0.00021917,2]
[314186506,1708054244758,-151.0,0.00021917,2]
[314186508,1708054244769,-151.0,0.00021917,2]
[314186510,1708054244779,-151.0,0.00021917,2]
[314186512,1708054244788,-151.0,0.00021917,2]
[314186514,1708054244797,-151.0,0.00021917,2]
[314186516,1708054244807,-151.0,0.00021917,2]
[314186518,1708054244816,-151.0,0.00021917,2]
[314186520,1708054244826,-151.0,0.00021917,2]
[314186521,1708054244835,-151.0,0.00021917,2]
[314186522,1708054244845,-151.0,0.00021917,2]
[314186523,1708054244854,-151.0,0.00021917,2]
[314186524,1708054244863,-184.50533155,0.00021917,2]
[314186525,1708054244872,-500.0,0.00021917,2]
[314186526,1708054244881,-500.0,0.00021917,2]
[314186527,1708054244891,-521.37862085,0.00021917,2]
[314186528,1708054244899,-1219.32,0.00021917,2]
[314186529,1708054244908,-500.0,0.00021917,2]
[314186530,1708054244917,-2910.33,0.00021917,2]
[314186531,1708054244926,-500.0,0.00021917,2]
[314186532,1708054244935,-2603.98,0.00021917,2]
[314186533,1708054244944,-500.0,0.00021917,2]
[314186534,1708054244953,-151.0,0.00021917,2]
[314186536,1708054244962,-151.0,0.00021917,2]
[314186537,1708054244971,-151.0,0.00021917,2]
[314186539,1708054244980,-500.0,0.00021917,30]
[314186541,1708054244990,-151.0,0.00021917,2]
[314186543,1708054245000,-151.0,0.00021917,2]
[314186546,1708054245009,-151.0,0.00021917,2]
[314186547,1708054245019,-151.0,0.00021917,2]
[314186549,1708054245027,-18667.13,0.00021917,2]
[314186551,1708054245036,-155.354,0.00021917,2]
[314186553,1708054245045,-852.11,0.00021917,2]
[314186555,1708054245054,-500.0,0.00021917,2]
[314186557,1708054245064,-500.0,0.00021917,2]
[314186559,1708054245073,-3948.71,0.00021917,2]
[314186562,1708054245082,-3948.71,0.00021917,2]
[314186564,1708054245093,-3948.71,0.00021917,2]
[314186565,1708054245102,-3948.71,0.00021917,2]
[314186568,1708054245112,-3948.71,0.00021917,2]
[314186570,1708054245121,-3948.71,0.00021917,2]
[314186572,1708054245131,-3948.71,0.00021917,2]
[314186574,1708054245140,-3948.71,0.00021917,2]
[314186576,1708054245150,-3948.71,0.00021917,2]
[314186577,1708054245159,-3948.71,0.00021917,2]
[314186579,1708054245169,-501.95411402,0.00021917,2]
[314186581,1708054245178,-500.0,0.00021917,2]
[314186584,1708054245188,-500.0,0.00021917,2]
[314186586,1708054245197,-500.0,0.00021917,2]
[314186588,1708054245206,-500.0,0.00021917,2]
[314186589,1708054245216,-500.0,0.00021917,2]
[314186592,1708054245227,-500.0,0.00021917,2]
[314186594,1708054245236,-1591.21,0.00021917,2]
[314186595,1708054245247,-15067.1,0.00021917,2]
[314186598,1708054245256,-3743.66,0.00021917,2]
[314186599,1708054245265,-500.0,0.00021917,2]
[314186601,1708054245274,-500.0,0.00021917,2]
[314186603,1708054245283,-500.0,0.00021917,2]
[314186605,1708054245293,-490.22860196,0.00021917,2]
[314186607,1708054245302,-506.36604437,0.00021917,2]
[314186609,1708054245311,-2066.91,0.00021917,2]
[314186611,1708054245321,-1505.22,0.00021917,2]
[314186613,1708054245330,-500.0,0.00021917,2]
[314186615,1708054245339,-3281.48,0.00021917,2]
[314186617,1708054245348,-500.0,0.00021917,2]
[314186619,1708054245358,-544.02446171,0.00021917,2]
[314186621,1708054245367,-2563.61,0.00021917,2]
[314186623,1708054245377,-500.0,0.00021917,2]
[314186625,1708054245387,-500.0,0.00021917,2]
[314186627,1708054245398,-500.0,0.00021917,2]
[314186629,1708054245408,-3197.98,0.00021917,2]
[314186631,1708054245417,-500.0,0.00021917,2]
[314186633,1708054245426,-558.77,0.00021917,2]
[314186635,1708054245437,-500.0,0.00021917,2]
[314186637,1708054245446,-23026.58,0.00021917,2]
[314186639,1708054245455,-500.0,0.00021917,2]
[314186641,1708054245465,-15412.25,0.00021917,2]
[314186643,1708054245476,-2019.41,0.00021917,2]
[314186646,1708054245486,-500.0,0.00021917,2]
[314186648,1708054245497,-550.50511906,0.00021917,2]
[314186650,1708054245506,-500.0,0.00021917,2]
[314186651,1708054245515,-500.0,0.00021917,2]
[314186653,1708054245524,-500.0,0.00021917,2]
[314186655,1708054245534,-201.23905066,0.00021917,2]
[314186658,1708054245543,-500.0,0.00021917,2]
[314186660,1708054245553,-9252.95,0.00021917,2]
[314186662,1708054245562,-620.13262064,0.0002197,2]
[314186664,1708054245571,-3946.02752485,0.00022,2]
[314186666,1708054245581,-155.13652014,0.00022,4]
[314186668,1708054245590,-1000.0,0.00022053,2]
[314186670,1708054245599,-33527.72767316,0.00022091,2]
[314186672,1708054245608,-3261.78113211,0.00022091,2]
[314186674,1708054245617,-579.0,0.000221,2]
[314186676,1708054245626,-1616.0,0.00022113,6]
[314186678,1708054245635,-3948.71,0.00022118,2]
[314186680,1708054245644,-7196.9314968,0.00022119,2]
[314186681,1708054245653,-5000.0,0.00022119,2]
[314186684,1708054245662,-5698.14857396,0.00022119,2]
[314186685,1708054245672,-5000.0,0.00022119,2]
[314186688,1708054245683,-3948.71,0.00022135,2]
[314186690,1708054245692,-5000.0,0.00022136,2]
[314186692,1708054245701,-14590.21523946,0.00022136,2]
[314186694,1708054245710,-5000.0,0.00022136,2]
[314186696,1708054245719,-5000.0,0.00022136,2]
[314186698,1708054245728,-4229.25118664,0.00022136,2]
[314186700,1708054245737,-8353.31787367,0.00022136,2]
[314186702,1708054245747,-1000.0,0.00022145,2]
[314186704,1708054245758,-1000.0,0.00022148,2]
[314186706,1708054245767,-1634.99642066,0.0002219,3]
[314186708,1708054245777,-3948.71,0.0002219,2]
[314186710,1708054245786,-3948.71,0.0002219,2]
[314186712,1708054245795,-3948.71,0.0002219,2]
[314186714,1708054245804,-3948.71,0.0002219,2]
[314186716,1708054245813,-3948.71,0.0002219,2]
[314186718,1708054245822,-1000.0,0.0002219,2]
[314186720,1708054245832,-500.0,0.00022191,2]
[314186722,1708054245841,-500.0,0.00022191,2]
[314186724,1708054245850,-500.0,0.00022191,2]
[314186726,1708054245859,-500.0,0.00022191,2]
[314186728,1708054245867,-500.0,0.00022191,2]
[314186730,1708054245877,-500.0,0.00022191,2]
[314186732,1708054245886,-500.0,0.00022191,2]
[314186735,1708054245895,-500.0,0.00022191,2]
[314186737,1708054245905,-507.26136715,0.00022191,2]
[314186739,1708054245914,-516.22443742,0.00022191,2]
[314186741,1708054245923,-254.83079031,0.00022191,2]
[314186743,1708054245931,-547.44,0.00022191,2]
[314186745,1708054245941,-500.0,0.00022191,2]
[314186747,1708054245949,-500.0,0.00022191,2]
[314186750,1708054245958,-1221.25,0.00022191,2]
[314186753,1708054245967,-176.65796769,0.00022191,2]
[314186756,1708054245977,-500.0,0.00022191,2]
[314186759,1708054245987,-665.87,0.00022191,2]
[314186762,1708054245997,-500.0,0.00022191,2]
[314186764,1708054246006,-500.0,0.00022191,2]
[314186766,1708054246015,-500.0,0.00022191,2]
[314186768,1708054246024,-500.0,0.00022191,2]
[314186770,1708054246033,-500.0,0.00022191,2]
[314186772,1708054246042,-500.0,0.00022191,2]
[314186774,1708054246051,-506.01,0.00022191,2]
[314186776,1708054246060,-500.0,0.00022191,2]
[314186778,1708054246069,-500.0,0.00022191,2]